Cogmind - Beta 13 @@@ ROGUE MODE // 2024.04.28 @ 11:06:37 Player: ash Result: Destroyed by D-53 Grenadier with Mini Grenade Launcher Performance ------------- Evolutions (0) 0 Regions Visited (2) 400 Robots Destroyed (18) 90 Value Destroyed (421) 421 Prototype IDs (2) 40 Alien Tech Used (0) 0 Bonus (0) 0 TOTAL SCORE: 951 Bonus ------- None Cogmind --------- Core Integrity 0/250 Matter 277/300 Energy 125/125 System Corruption 0% Temperature Cool (0) Movement Walking (120) Location -10/Mines Parts ------- > --- POWER (1) -------- Light Ion Engine > --- PROPULSION (2) --- Aluminum Leg > --- UTILITY (2) ------ Small Storage Unit > --- WEAPON (2) ------- (None) > --- INVENTORY (8) ---- Light Ion Engine Aluminum Leg Aluminum Leg Aluminum Leg Experimental Sensor Array Light Armor Plating EM Pulse Gun Small Laser Peak State ------------ > --- POWER ------------ Ion Engine > --- PROPULSION ------- Aluminum Leg Aluminum Leg > --- UTILITY ---------- Small Storage Unit Light Armor Plating > --- WEAPON ----------- Assault Rifle Light Cannon > --- INVENTORY -------- Light Ion Engine Aluminum Leg Aluminum Leg Aluminum Leg Experimental Sensor Array Light Armor Plating EM Pulse Gun Small Laser [Rating: 8] Favorites ----------- Power Ion Engine Engine Ion Engine Propulsion Aluminum Leg Treads Light Treads Leg Aluminum Leg Utility Small Storage Unit Storage Small Storage Unit Protection Light Armor Plating Weapon Assault Rifle Ballistic Gun Assault Rifle Ballistic Cannon Light Cannon Build | -11 -10 -10 ------- Run | Yrd Mat Min Slots Evolved . | . . . Power . | . . . Propulsion . | . . . Utility . | . . . Weapon . | . . . Parts Attached 11 | . 5 6 Power 1 | . . 1 Engine 1 | . . 1 Core . | . . . Reactor . | . . . Propulsion 7 | . 4 3 Treads 2 | . 2 . Leg 5 | . 2 3 Wheel . | . . . Hover . | . . . Flight . | . . . Utility 2 | . 1 1 Device . | . . . Storage . | . . . Processor . | . . . Hackware . | . . . Protection 2 | . 1 1 Artifact . | . . . Weapon 1 | . . 1 Energy Gun . | . . . Energy Cannon . | . . . Ballistic Gun . | . . . Ballistic Cannon 1 | . . 1 Launcher . | . . . Special Weapon . | . . . Impact Weapon . | . . . Slashing Weapon . | . . . Piercing Weapon . | . . . Special Melee Weapon . | . . . Unidentified Prototypes . | . . . Parts Lost 8 | . 1 7 Power 1 | . . 1 Propulsion 3 | . 1 2 Utility 2 | . . 2 Weapon 2 | . . 2 Highest Loss Streak 4 | . 1 4 To Critical Strikes . | . . . Average Slot Usage (%) 96 | . 94 98 Engine 13 | . 14 13 Treads 9 | . 18 . Leg 17 | . 8 27 Storage 14 | . 14 14 Protection 11 | . 9 13 Ballistic Gun 24 | . 28 20 Ballistic Cannon 3 | . . 6 Naked Turns . | . . . Heaviest Build 18 | 13 16 18 Greatest Support 40 | 20 40 20 Greatest Overweight (x) 1 | . . 1 Average Overweight (x) . | . . . Largest Inventory Capacity 8 | . 8 8 Average Capacity 8 | . 8 8 Most Carried 8 | . 8 8 Average Carried 7 | . 7 7 Final Capacity 8 | 8 8 8 Final Carried 8 | 6 8 8 Class Distribution -------------------- 100% | Mutant Dominant Class ---------------- Mutant | -10/Materials Mutant | -10/Mines Resources | -11 -10 -10 ----------- Run | Yrd Mat Min Matter Collected 507 | 195 194 118 Remotely . | . . . Salvage Created 501 | . 384 117 Parts 35 | . 25 10 Haulers Intercepted . | . . . Recyclers Shooed 1 | . 1 . Parts Field Recycled . | . . . Retrieved Matter . | . . . Parts Self-Destructed . | . . . Prevented . | . . . Kills | -11 -10 -10 ------- Run | Yrd Mat Min Combat Hostiles Destroyed 16 | . 11 5 Guns 13 | . 11 2 Cannons 3 | . . 3 Classes Destroyed 3 | . 3 . Watcher 2 | . 2 . Swarmer 7 | . 4 3 Grunt 9 | . 7 2 Best Kill Streak 3 | . 3 3 Combat Bots Only 3 | . 3 3 Max Kills in Single Turn 1 | . 1 1 Gunslinging . | . . . Exploded . | . . . Melee . | . . . Uniques/NPCs Destroyed . | . . . Combat | -11 -10 -10 -------- Run | Yrd Mat Min Hostile Shots Fired 123 | . 58 65 Missed 30 | . 16 14 Damage Taken 1429 | . 525 904 Core 276 | . 72 204 Absorbed by Shields . | . . . Core Remaining (%) 100 | 100 . . Volleys Fired 59 | . 36 23 Largest 2 | . 2 2 Hottest 55 | . 40 55 Shots Fired 118 | . 72 46 Gun 110 | . 72 38 Cannon 8 | . . 8 Launcher . | . . . Special . | . . . Kinetic 118 | . 72 46 Thermal . | . . . Explosive . | . . . Electromagnetic . | . . . Robot Hit Streak 13 | . 10 13 Robot Miss Streak 8 | . 2 8 Penetration Max . | . . . Secondary Targets 2 | . 1 1 Max Gunslinging Chain 1 | . 1 1 Shots Hit Robots 76 | . 46 30 Core Hits 30 | . 21 9 Critical Kills . | . . . Critical Parts Destroyed . | . . . Critical Strikes . | . . . Melee Attacks . | . . . Impact . | . . . Slashing . | . . . Piercing . | . . . Sneak Attacks . | . . . Combat Hostiles . | . . . Follow-up Attacks . | . . . Damage Inflicted 914 | . 513 401 Guns 821 | . 513 308 Cannons 93 | . . 93 Explosions . | . . . Melee . | . . . Ramming . | . . . Kinetic 914 | . 513 401 Thermal . | . . . Explosive . | . . . Electromagnetic . | . . . Impact . | . . . Slashing . | . . . Piercing . | . . . Highest Corruption . | . . . Average Corruption . | . . . Corruption Purged . | . . . Corruption Blocked . | . . . Overload Shots . | . . . Overflow Damage . | . . . Projectiles . | . . . Explosions . | . . . Melee . | . . . Knockbacks 2 | . . 2 Impact . | . . . Kinetic 2 | . . 2 Secondary . | . . . Self-Inflicted Damage . | . . . Shots . | . . . Rammed . | . . . Targets Rammed . | . . . Kicked . | . . . Crushed . | . . . Highest Temperature 77 | . 25 77 Average Temperature 21 | . 10 35 Received Heat Transfer 429 | . 222 207 Siege Activations . | . . . Robots Corrupted . | . . . Combat Hostiles . | . . . Parts Fried . | . . . Impact Corruptions . | . . . Robots Melted . | . . . Combat Hostiles . | . . . Parts Melted . | . . . Heat Transferred . | . . . Parts Sabotaged . | . . . Parts Stolen . | . . . Parts Stripped . | . . . Power Chain Reactions . | . . . Alert | -11 -10 -10 ------- Run | Yrd Mat Min Peak Influence 300 | . 300 130 Initial 40 | . . 40 Average 114 | . 149 76 Maximum Alert Level 1 | . 1 . Low Security (%) 77 | . 56 100 Level 1 22 | . 43 . Level 2 . | . . . Level 3 . | . . . Level 4 . | . . . Level 5 . | . . . High Security . | . . . Max Security . | . . . Squads Dispatched 4 | . 4 . Investigation 3 | . 3 . Extermination . | . . . Reinforcement 1 | . 1 . Assault . | . . . Garrison . | . . . Intercept . | . . . Searches Triggered . | . . . Construction Impeded . | . . . Haulers Reinforced . | . . . Active Scanning Responses . | . . . Cargo Convoy Interrupts . | . . . Stealth | -11 -10 -10 --------- Run | Yrd Mat Min Distress Signals 1 | . 1 . Communications Jammed . | . . . Distress Signals . | . . . Times Spotted 22 | . 15 7 Peak Tracking Total 3 | . 3 3 Tactical Retreats . | . . . Traps | -11 -10 -10 ------- Run | Yrd Mat Min Traps Triggered 1 | . 1 . Indirectly . | . . . Trap Hack Attempts . | . . . Triggered . | . . . Disarmed . | . . . Reprogrammed . | . . . Reused . | . . . Traps Extracted . | . . . Installed 2 | . . 2 Triggered . | . . . Most Traps Carried 1 | . . 1 Machines | -11 -10 -10 ---------- Run | Yrd Mat Min Machines Disabled . | . . . Max in Single Turn . | . . . Machines Repaired . | . . . Machines Dismantled . | . . . Machines Sabotaged . | . . . Overloaded Fab Kills . | . . . Hacking | -11 -10 -10 --------- Run | Yrd Mat Min Machines Accessed 6 | . 6 . Terminals 6 | . 6 . Fabricators . | . . . Repair Stations . | . . . Recycling Units . | . . . Scanalyzers . | . . . Garrison Access . | . . . Total Hacks 25 | . 25 . Successful 9 | . 9 . Failed 16 | . 16 . Catastrophic 3 | . 3 . Database Lockouts . | . . . Manual 16 | . 16 . Terminals 25 | . 25 . Fabricators . | . . . Repair Stations . | . . . Recycling Units . | . . . Scanalyzers . | . . . Garrison Access . | . . . Terminal Hacks 6 | . 6 . Prototype ID Bank 1 | . 1 . Branch Access Points 1 | . 1 . Alert Level 1 | . 1 . Locate Traps 2 | . 2 . Hauler Manifests 1 | . 1 . Fabricator Hacks . | . . . Repair Station Hacks . | . . . Recycling Unit Hacks . | . . . Scanalyzer . | . . . Garrison Access Hacks . | . . . Unauthorized Hacks 3 | . 3 . Terminals 3 | . 3 . Track 1 | . 1 . Botnet 2 | . 2 . Fabricators . | . . . Repair Stations . | . . . Recycling Units . | . . . Scanalyzers . | . . . Garrison Access . | . . . Data Cores Recovered . | . . . Used . | . . . Hacking Detections 6 | . 6 . Full Trace Events 2 | . 2 . Feedback Events . | . . . Feedback Blocked . | . . . Robot Schematics Acquired . | . . . Robots Built . | . . . Authchips . | . . . Time . | . . . Total Robot Build Rating . | . . . Part Schematics Acquired . | . . . Parts Built . | . . . Authchips . | . . . Time . | . . . Total Part Build Rating . | . . . Parts Repaired . | . . . Time . | . . . Parts Recycled . | . . . Recycled Matter . | . . . Retrieved Matter . | . . . Retrieved Components . | . . . Parts Scanalyzed . | . . . Part Schematics Acquired . | . . . Parts Damaged . | . . . Bothacking | -11 -10 -10 ------------ Run | Yrd Mat Min Used RIF Installer . | . . . Robots Hacked . | . . . Non-combat . | . . . Combat . | . . . Robot Hacks Applied . | . . . Relay Couplers Released . | . . . Fabnet Peak Effective % . | . . . Robots Rewired . | . . . Allies Hacked . | . . . Hacks Repelled . | . . . Allies | -11 -10 -10 -------- Run | Yrd Mat Min Total Allies . | . . . Largest Group . | . . . Highest-Rated Group . | . . . Highest-Rated Ally . | . . . Total Orders . | . . . Ally Attacks . | . . . Total Damage . | . . . Kills . | . . . Allies Corrupted . | . . . Allies Melted . | . . . Intel | -11 -10 -10 ------- Run | Yrd Mat Min Robot Analysis Total . | . . . Derelict Logs Recovered 1 | . . 1 Drone Launches . | . . . Drone Recoveries . | . . . Exploration | -11 -10 -10 ------------- Run | Yrd Mat Min Turns Passed 853 | . 442 411 Spaces Moved 492 | 1 217 274 Core . | . . . Treads 127 | . 127 . Legs 365 | 1 90 274 Wheels . | . . . Hover . | . . . Flight . | . . . Fastest Speed 120 | 120 120 120 Average Speed 130 | 120 143 120 Slowest Speed 190 | 120 160 190 Overloaded Moves . | . . . Propulsion Burnouts . | . . . Robots Hopped . | . . . Cave-ins Triggered . | . . . Exploration Rate (%) 34 | 1 49 53 Regions Visited 2 Branch Regions 1 Pre-discovered Areas 1 | . . 1 Known Exits Taken 1 | . 1 . Unknown Exits Taken 1 | 1 . . Scrap Searched 1 | . . 1 Spaces Dug . | . . . Terrain Destroyed . | . . . Melee . | . . . Projectile . | . . . AOE . | . . . Terrain Rammed . | . . . Walls Destroyed . | . . . Machines Disabled . | . . . Actions | -11 -10 -10 --------- Run | Yrd Mat Min Total 600 | . 287 313 Wait 10 | . 10 . Move 490 | . 216 274 Hop . | . . . Pick Up 15 | . 11 4 Fast Attach 2 | . 1 1 Attach 5 | . 2 3 Detach 1 | . 1 . Swap 4 | . 2 2 Drop 12 | . 8 4 Fire 59 | . 36 23 Melee . | . . . Ram . | . . . Kick . | . . . Crush . | . . . Escape Stasis . | . . . Rewire . | . . . Trap 2 | . . 2 Miscellaneous . | . . . Route ------- -11/Scrapyard -10/Materials (discovered 3 exits: [*Mat] / *Min x2) -10/Mines History --------- Turn | Location | Event 1 | -11/Scrapyard | Discovered new exit (range 0) 1 | -11/Scrapyard | Entered Materials 92 | -10/Materials | Identified exit to Mines 235 | -10/Materials | Discovered new exit (range 11) 303 | -10/Materials | Build established: Mutant 443 | -10/Materials | Entered Mines 466 | -10/Mines | Met a Derelict bent on vengeance 553 | -10/Mines | Found a hidden stash of uninstalled traps 636 | -10/Mines | Learned location of Zion (-6) 652 | -10/Mines | Found a damaged Exp. Sensor Array with a note attached 656 | -10/Mines | Found Prototype Device 758 | -10/Mines | Core integrity fell below 50% 834 | -10/Mines | Assembled infested the area 839 | -10/Mines | Assisted by a Guerilla fighting off Assembled 849 | -10/Mines | Core integrity fell below 20% 854 | -10/Mines | Destroyed by D-53 Grenadier with Mini Grenade Launcher Last Messages --------------- squad. 00839_ A derelict emerges from the shadows: "You need to get out of here! I've been tracking a group of Assembled to figure out where they're coming from, and they're closing on this area, come on!" 00842_ C-30 ARC bursts open, deploying its payload. 00842_ D-53 Grenadier unfolds itself. 00842_ Assault Rifle destroyed. 00842_ AT-QQO(h): "I'll hold them off! Go on ahead or try to find another way!" 00842_ HV Slug penetrates Earth. 00844_ HV Slug penetrates Wall. 00848_ Aluminum Leg destroyed. 00848_ Lgt. Armor Plating destroyed. 00849_ The unstable cave ceiling collapses. 00850_ AT-QQO(h) destroyed. 00850_ Lgt. Cannon destroyed. 00850_ T-07 Excavator destroyed. 00852_ The unstable cave ceiling collapses. [Achievement: Back For More] [Achievement: Tester] Map ----- +----------------------------------------------------+ | | | ?????????????????????????????????????????????????? | | ????????????????????????#########????????????????? | | ???????????????????????## ##???????????????? | | ???????????????????????# """" ##??????????????? | | ???????????????????????# """" #??????????????? | | ??########?###?????????# """" #??????????????? | | ??# ? #?????????# #???????????????? | | ??# """ """ #?????????## ### #???????????????? | | ??# """ """ #??????????###?## #???????????????? | | ??# """ """ #?????????????## #???????????????? | | ??# ############### #???????????????? | | ??# """ """ ## ##???????????????? | | ??# """ """ ##*########### ##????????????????? | | ??# """ """ ##%#?????????# ##?????????????????? | | ??# ##%#?????????# ##??????????????????? | | ??# """ """ ## ########### #???????????????????? | | ??# """ """ = [= #???????????????????? | | ??# """ """ ########### #???????????????????? | | ??# #?????????# ####???????????????????? | | ??############????????## ###????????????????????? | | ?????????????????????## # ##???????????????????? | | ?????####????????????# #???????????????????? | | ????## ##??????????## ##??????????????????? | | ???## ##?????????# #??????????????????? | | ??## #?????????# @ #??????????????????? | | ??# #?????????## ##???#??????????????? | | ??# #?????????# ##? #??????????????? | | ??#### #?????????# ## #??????????????? | | ?????## ##????????## #??????????????? | | ??????# ##????????# #??????????????? | | ??????## #????????# d###????????????? | | ???????## ##????????# # d % #????????????? | | ????????# ##????????? ###????????????? | | ????????# #?????????# #??????????????? | | ????????# #?????????# %= # ##??????????????? | | ????????# #??????#### #####???????????????? | | ????????# #?###### #???????????????????? | | ????????# #?# #???????????????????? | | ????????# #?# #### #### ###???????????????????? | | ????????# #?# #??# ########?????????????????????? | | ?????#### ### #??# [ #??????????????????????? | | ?????# #??# %% #??????????? ?????????? | | ?????# ########??####### #??????????# ????????? | | ?????# #???????????????# #??????#### ????????? | | ?????# #???????????????# #?????# ???????? | | ?????# #?????????####??# #????? ???????? | | ????## #????????## ##?# #????? ??????? | | ???## ##?####### #?# #????# ??????? | | ??## #?# #?# #???# ??????? | +----------------------------------------------------+ Best States ------------- Heat Dissipation 25 Energy Generation 10 Energy Capacity 250 Matter Stores 300 Matter Capacity 300 Sight Range 16 Terrain Scan Density 10 Armor Coverage 150 Evasion (%) 55 Recoil Reduction 2 Item Schematics ----------------- None Robot Schematics ------------------ None Fabricated ------------ Nothing Alien Tech Used ----------------- None Achievements -------------- Back For More Tester Challenges ------------ None Game ------ Seed GlidesysDamperFlakker Manual? 0 Play Time 00:13:12 Cumulative 57.1 hours Start 2024.04.28 @ 10:53:58 End 2024.04.28 @ 11:06:37 Sessions 1 Manual Loads 0 Difficulty Rogue Special Mode None Game No. 50 Rogue 5 Adventurer 45 Explorer 0 Win Type - Total 2 Types 2/0/0/0/0/0/0/0/0 Lore% 52 Gallery% 50 Achievement% 44 Wizard Run 0 Options --------- Layout 0 ASCII 1 Keyboard 1 Movement Numpad Keybinds 0 Fullscreen 1 Font 24/Smallcaps Map View 76x50 Zoom Use 0% Tactical HUD 1 Map Filters NONE Filters NONE Steam 1 RUN: d59fdf99-3fa2-43bd-88a1-6faedd945b74